bitfinex/quotes_ETHUSD_20250403
["timestamp","ask_amount","ask_price","bid_price","bid_amount"]
[1743688604467,5.61142,1782.1,1781.8,0.8303]
[1743688604674,11.22396,1782.0,1781.6,6.3996]
[1743688604967,5.61196,1782.0,1781.7,0.63996]
[1743688605260,5.61196,1782.0,1781.6,0.7867]
[1743688605261,5.61278,1781.7,1781.3,12.03625]
[1743688605563,5.61236,1781.8,1781.4,11.28307741]
[1743688605749,5.61263,1781.7,1781.3,6.42262]
[1743688605948,5.61307,1781.6,1781.3,6.42265]
[1743688606152,5.61307,1781.6,1781.3,7.626329]
[1743688606481,5.61303,1781.6,1781.3,2.06860807]
[1743688606763,11.22563,1781.7,1781.3,7.68236807]
[1743688606958,5.61276,1781.7,1781.4,5.61354]
[1743688607564,11.22555,1781.7,1781.3,7.626239]
[1743688607723,5.61276,1781.7,1781.4,0.81875075]
[1743688607928,11.2256,1781.7,1781.4,0.7626239]
[1743688608161,5.61236,1781.8,1781.4,0.7626239]
[1743688608326,0.7968,1781.9,1781.5,0.05612685]
[1743688608531,0.7968,1781.9,1781.4,5.66962683]
[1743688608731,0.7968,1781.9,1781.4,11.22687]
[1743688608732,5.61259,1781.8,1781.4,11.22687]
[1743688608933,0.7968,1781.9,1781.4,0.55]
[1743688609162,5.61243,1781.8,1781.4,6.16343]
[1743688609361,5.61243,1781.8,1781.5,0.616343]
[1743688609660,5.61243,1781.8,1781.5,6.229583]
[1743688609959,5.61243,1781.8,1781.5,6.285707]
[1743688610167,11.22584,1781.7,1781.3,12.03632]
[1743688610327,5.6128,1781.7,1781.4,5.66958031]
[1743688610531,5.61278,1781.7,1781.3,6.42262]
[1743688610729,5.61278,1781.7,1781.3,6.47875031]
[1743688610929,5.61302,1781.6,1781.3,6.42262]
[1743688611130,5.61302,1781.6,1781.3,2.01248]
[1743688611429,5.61302,1781.6,1781.3,7.68246032]
[1743688611672,5.61265,1781.7,1781.3,7.68246032]
[1743688611876,11.22546,1781.7,1781.3,7.68246032]
[1743688612072,5.6124,1781.8,1781.4,5.61341]
[1743688612368,5.61223,1781.9,1781.5,6.23067504]
[1743688612573,6.83060152,1782.1,1781.7,5.61256]
[1743688612574,1.21920152,1782.1,1781.7,5.61256]
[1743688612874,5.61104,1782.2,1781.9,5.61185]
[1743688613047,5.61104,1782.2,1781.9,6.82050306]
[1743688613241,5.61104,1782.2,1781.8,6.41856]
[1743688613476,5.61104,1782.2,1781.8,6.47467398]
[1743688613976,5.61104,1782.2,1781.8,12.08683398]
[1743688614276,5.61104,1782.2,1781.9,5.61196]
[1743688614473,5.61104,1782.2,1782.0,0.55]
[1743688614672,5.61088,1782.3,1782.0,1.166196]
[1743688614974,5.61088,1782.3,1782.1,0.05610777]
[1743688615147,5.61088,1782.3,1782.0,0.55]
[1743688615352,5.6116,1782.1,1781.7,5.61242]
[1743688615674,11.2232,1782.1,1781.8,0.05611621]
[1743688615879,5.6116,1782.1,1781.8,5.66836621]
[1743688616056,11.22233,1782.2,1781.8,11.28050621]
[1743688616259,5.6113,1782.2,1781.9,0.55]
[1743688616452,11.22262,1782.2,1781.9,0.55]
[1743688616674,11.22259,1782.2,1781.9,0.55]
[1743688616997,0.7998,1782.4,1781.7,0.616242]
[1743688616998,5.61146,1782.1,1781.7,5.61235]
[1743688617197,5.6111,1782.2,1781.9,0.7712]
[1743688617702,5.61123,1782.2,1781.9,0.7712]
[1743688617897,6.41031,1782.4,1782.0,5.61142]
[1743688618099,11.22182,1782.3,1781.9,6.38312]
[1743688618274,5.61113,1782.2,1781.9,6.38312]
[1743688618462,5.61167,1782.0,1781.7,1.3572]
[1743688618663,5.61167,1782.0,1781.7,0.8072]
[1743688618864,5.61117,1782.2,1781.8,5.61228]
[1743688619101,5.61163,1782.1,1781.7,12.08835784]
[1743688619298,3.7998,1782.4,1781.7,0.8072]
[1743688619500,5.61141,1782.1,1781.8,5.61221]
[1743688619700,5.61141,1782.1,1781.7,6.47588629]
[1743688619701,5.6118,1782.0,1781.7,6.41977]
[1743688620004,5.61109,1782.2,1781.8,0.55]
[1743688620200,3.7998,1782.4,1781.7,0.8072]
[1743688620201,5.61161,1782.1,1781.7,6.41979]
[1743688620504,5.61187,1782.0,1781.8,0.05611408]
[1743688620704,5.61187,1782.0,1781.8,0.282212]
[1743688620705,5.61186,1782.0,1781.8,0.282212]
[1743688621005,5.61198,1781.9,1781.8,0.282212]
[1743688622002,5.61321,1781.6,1781.2,6.36594]
[1743688622207,5.61326,1781.5,1781.2,6.42207398]
[1743688622504,5.61326,1781.5,1781.2,0.80803398]
[1743688622704,11.22608,1781.6,1781.2,12.03608398]
[1743688622936,5.61328,1781.5,1781.2,6.36586]
[1743688623110,5.61298,1781.6,1781.3,0.636586]
[1743688623675,11.22607,1781.6,1781.3,6.250446]
[1743688624376,11.22613,1781.6,1781.3,0.636586]
[1743688625110,11.22614,1781.6,1781.3,0.636586]
[1743688625479,5.61298,1781.6,1781.3,6.250436]
[1743688625803,11.22543,1781.7,1781.4,0.6250436]
[1743688626111,11.22543,1781.7,1781.3,11.22748]
[1743688626315,5.61302,1781.6,1781.3,5.61373]
[1743688626742,5.61337,1781.5,1781.2,11.98009]
[1743688626948,11.22602,1781.6,1781.2,11.98009]
[1743688627136,11.22602,1781.6,1781.2,6.36597]
[1743688627428,5.6133,1781.5,1781.2,6.36597]
[1743688627624,5.6133,1781.5,1781.2,0.7519]
[1743688627625,5.61362,1781.4,1781.2,0.7519]
[1743688627830,6.4201,1781.6,1781.2,0.7519]
[1743688628133,5.61327,1781.5,1781.2,6.36593]
[1743688628443,5.61327,1781.5,1781.2,7.57457978]
[1743688628645,5.61327,1781.5,1781.2,7.63071513]
[1743688628933,6.4201,1781.6,1781.1,0.05]
[1743688628934,5.61387,1781.3,1781.1,0.05]
[1743688629153,11.22805,1781.3,1781.1,0.05]
[1743688629355,5.61337,1781.5,1781.2,5.61402]
[1743688629650,6.37712,1781.8,1781.3,1.111402]
[1743688629808,5.61274,1781.7,1781.4,5.61354]
[1743688629999,5.61241,1781.8,1781.5,5.66924003]
[1743688630198,11.22488,1781.8,1781.5,5.66924003]
[1743688630399,5.61277,1781.7,1781.4,5.61355]
[1743688630597,5.61235,1781.8,1781.4,6.90340877]
[1743688630833,11.22486,1781.8,1781.4,12.4606822]
[1743688631010,5.61235,1781.8,1781.4,6.8472722]
[1743688631211,11.22482,1781.8,1781.5,5.61321]
[1743688631599,5.61205,1781.9,1781.5,5.61321]
[1743688631799,5.61246,1781.8,1781.5,5.61317]
[1743688632000,5.61246,1781.8,1781.5,0.561317]
[1743688632330,5.61246,1781.8,1781.5,6.174517]
[1743688632529,5.61246,1781.8,1781.5,0.561317]
[1743688632699,5.61246,1781.8,1781.5,5.61314]
[1743688633113,5.61246,1781.8,1781.4,5.61352]
[1743688633114,5.61288,1781.7,1781.4,5.61352]
[1743688633327,5.61288,1781.7,1781.4,5.66964663]
[1743688633526,0.8019,1782.1,1781.5,1.3758]
[1743688633739,15.39032,1782.2,1781.5,1.3758]
[1743688633740,5.61126,1782.2,1781.8,5.6122]
[1743688633920,11.22295,1782.1,1781.8,1.122476]
[1743688634134,5.61137,1782.1,1781.8,6.734736]
[1743688634452,5.61108,1782.2,1781.9,5.61186]
[1743688634614,11.22232,1782.2,1781.8,6.734736]
[1743688634816,11.22232,1782.2,1781.8,6.79085165]
[1743688635017,11.22299,1782.1,1781.8,1.122476]
[1743688635340,5.61115,1782.2,1781.8,5.61208]
[1743688635516,11.22236,1782.2,1781.9,5.61186]
[1743688635711,5.61115,1782.2,1781.9,5.61186]
[1743688635936,6.83059276,1782.5,1781.9,6.43773]
[1743688636235,6.83059276,1782.5,1781.6,6.16292]
[1743688636236,5.61042,1782.4,1781.7,6.43819]
[1743688636454,5.61042,1782.4,1781.5,10.328]
[1743688636455,5.61252,1781.8,1781.3,0.8258]
[1743688636616,5.61262,1781.7,1781.4,5.61341]
[1743688637136,5.61266,1781.7,1781.4,5.66953954]
[1743688637640,5.61264,1781.7,1781.4,5.61341]
[1743688637801,5.61264,1781.7,1781.3,6.43965]
[1743688638141,5.61293,1781.6,1781.3,7.70112381]
[1743688638436,5.61293,1781.6,1781.3,2.031183]
[1743688638605,5.61293,1781.6,1781.3,2.0873157]
[1743688638940,5.61232,1781.8,1781.5,5.6132]
[1743688639348,11.22418,1781.9,1781.5,6.79199148]
[1743688639646,11.22354,1782.0,1781.5,6.735832]
[1743688639942,0.7969,1782.1,1781.6,0.55]
[1743688639943,11.22432,1781.9,1781.6,0.55]
[1743688640142,5.61167,1782.0,1781.3,13.258673]
[1743688640348,5.6126,1781.8,1781.4,1.3819948]
[1743688640531,11.2252,1781.8,1781.4,5.6695575]
[1743688640913,11.2252,1781.8,1781.4,5.61343]
[1743688641139,11.2252,1781.8,1781.4,5.66955865]
[1743688641442,5.61268,1781.7,1781.3,12.05344]
[1743688641760,5.61268,1781.7,1781.3,13.313784]
[1743688641761,11.22549,1781.7,1781.3,13.313784]
[1743688642462,5.61268,1781.7,1781.3,13.313784]
[1743688643371,0.7969,1782.1,1781.7,5.61252]
[1743688643372,6.40828,1782.1,1781.7,5.61252]
[1743688643539,5.61173,1782.0,1781.7,5.61252]
[1743688643743,5.61167,1782.0,1781.5,0.55]
[1743688644067,11.22434,1781.9,1781.5,5.61309]
[1743688644242,5.61236,1781.8,1781.5,6.73575]
[1743688644442,11.22484,1781.8,1781.5,1.12266]
[1743688644657,5.61236,1781.8,1781.5,1.12266]
[1743688644874,5.61236,1781.8,1781.5,6.73589]
[1743688645663,5.61218,1781.9,1781.5,6.73579]
[1743688645855,5.61218,1781.9,1781.6,5.61291]
[1743688646034,5.61218,1781.9,1781.5,5.61313]
[1743688646229,5.61248,1781.8,1781.4,5.61345]
[1743688646458,5.61248,1781.8,1781.4,11.2269]
[1743688646660,0.41195748,1782.0,1781.3,2.086144]
[1743688646865,5.61381,1781.4,1781.1,0.8022]
[1743688647059,11.22753,1781.4,1781.1,0.8022]
[1743688647381,5.61365,1781.4,1781.1,6.41661]
[1743688647674,5.61365,1781.4,1781.1,7.619751]
[1743688647874,5.61297,1781.6,1781.2,0.05613984]
[1743688648082,5.61333,1781.5,1781.2,5.61406]
[1743688648476,11.22606,1781.6,1781.2,11.22809]
[1743688648685,11.22606,1781.6,1781.2,5.61403]
[1743688648887,6.43909,1781.7,1781.1,0.8022]
[1743688649184,5.61293,1781.6,1781.1,0.8022]
[1743688649385,0.8263,1781.7,1781.1,0.8022]
[1743688649386,5.61371,1781.4,1781.1,0.8022]
[1743688649590,5.6133,1781.5,1781.2,5.61412]
[1743688649785,5.6133,1781.5,1781.1,6.41661]
[1743688650105,5.61357,1781.4,1781.1,7.67589024]
[1743688650245,11.2261,1781.6,1781.2,5.61404]
[1743688650448,6.43903,1781.7,1781.3,11.22754]
[1743688650662,5.61273,1781.7,1781.4,5.61345]
[1743688650862,5.61247,1781.8,1781.4,5.61341]
[1743688651063,12.38511,1781.9,1781.5,6.50251058]
[1743688651267,5.6126,1781.8,1781.5,0.8332]
[1743688651468,5.61271,1781.7,1781.5,0.8332]
[1743688651891,11.22513,1781.8,1781.5,0.8332]
[1743688652080,5.61267,1781.7,1781.5,0.8332]
[1743688652277,0.7804,1782.0,1781.4,0.561341]
[1743688652479,5.61239,1781.8,1781.5,5.61314]
[1743688652868,11.22488,1781.8,1781.4,6.16339]
[1743688653303,5.6127,1781.7,1781.4,6.16339]
[1743688653462,5.6127,1781.7,1781.4,0.55]
[1743688653656,5.6127,1781.7,1781.4,1.249695]
[1743688654080,5.6127,1781.7,1781.4,12.476655]
[1743688654297,5.61213,1781.9,1781.6,5.6129]
[1743688654461,0.7804,1782.0,1781.4,6.863175]
[1743688654675,5.61248,1781.8,1781.4,12.476585]
[1743688654883,5.61248,1781.8,1781.5,1.2476585]
[1743688655082,5.61205,1781.9,1781.6,0.55]
[1743688655083,5.61219,1781.9,1781.6,0.55]
[1743688655295,5.61231,1781.8,1781.6,0.55]
[1743688655617,12.38204,1782.2,1781.6,0.55]
[1743688655618,6.769,1782.2,1781.7,0.7516]
[1743688655798,5.61156,1782.1,1781.7,0.7516]
[1743688655964,5.61156,1782.1,1781.7,1.44305]
[1743688656167,11.22319,1782.1,1781.7,7.05553]
[1743688656367,5.61105,1782.2,1781.8,6.21829828]
[1743688656595,5.61105,1782.2,1781.9,5.61189]
[1743688657265,5.61042,1782.4,1781.8,6.16222]
[1743688657586,5.61149,1782.1,1781.8,6.16222]
[1743688657976,11.2226,1782.2,1781.8,11.77436]
[1743688658175,5.6113,1782.2,1781.8,11.77436]
[1743688658480,5.6113,1782.2,1781.9,5.61194]
[1743688658809,4.19120988,1782.5,1781.8,0.55]
[1743688659003,40.386,1782.8,1782.5,5.60984]
[1743688659004,0.7508,1782.8,1782.5,5.60984]
[1743688659296,5.60871,1783.0,1782.7,0.7747]
[1743688659662,5.60871,1783.0,1782.4,0.55]
[1743688659663,5.6095,1782.7,1782.4,1.3137]
[1743688659867,5.60983,1782.6,1782.2,6.16092]
[1743688660179,5.61046,1782.4,1782.2,0.7637]
[1743688660705,5.6101,1782.5,1782.2,0.7637]
[1743688661168,5.61041,1782.4,1782.2,0.7637]
[1743688661499,5.61083,1782.3,1782.0,0.7601]
[1743688661686,5.61083,1782.3,1782.0,1.958478]
[1743688661898,5.61083,1782.3,1782.0,2.01458757]
[1743688662100,5.61041,1782.4,1782.1,5.61132]
[1743688662286,5.60978,1782.6,1782.2,5.61091]
[1743688662486,11.21984,1782.6,1782.2,5.61091]
[1743688662684,11.21984,1782.6,1782.2,5.66701542]
[1743688663008,5.61013,1782.5,1782.1,5.61132]
[1743688663174,5.61055,1782.4,1782.1,0.55]
[1743688663372,5.61013,1782.5,1782.1,6.9732068]
[1743688663590,11.21978,1782.6,1782.2,5.61093]
[1743688663773,5.60981,1782.6,1782.2,5.66703239]
[1743688663993,5.61043,1782.4,1782.2,0.05610239]
[1743688664196,5.61261,1781.7,1781.5,0.7634]
[1743688664407,5.61307,1781.6,1781.3,0.7634]
[1743688664587,5.61264,1781.7,1781.3,1.64354542]
[1743688664791,5.61264,1781.7,1781.3,7.25727542]
[1743688665016,5.61268,1781.7,1781.3,7.25727542]
[1743688665219,5.61161,1782.1,1781.6,5.61286]
[1743688665220,6.36484,1782.0,1781.6,5.61286]
[1743688665429,5.61184,1782.0,1781.6,5.61286]
[1743688665632,5.61184,1782.0,1781.6,6.174146]
[1743688665835,5.61184,1782.0,1781.6,11.84297726]
[1743688666126,5.61184,1782.0,1781.7,0.55]
[1743688666292,5.61184,1782.0,1781.6,6.174026]
[1743688666498,11.22375,1782.0,1781.6,6.174026]
[1743688666816,5.61184,1782.0,1781.6,6.174026]
[1743688667019,1.21911041,1782.2,1781.3,10.25737542]
[1743688667186,5.61262,1781.7,1781.3,7.25729542]
[1743688667391,5.61262,1781.7,1781.3,1.64354542]
[1743688667392,5.61264,1781.7,1781.3,1.64354542]
[1743688667611,0.7639,1781.8,1781.3,1.64354542]
[1743688667811,5.61355,1781.5,1781.2,2.42390423]
[1743688668116,6.37645,1781.8,1781.3,5.6137]
[1743688668321,11.22506,1781.8,1781.5,0.7662]
[1743688668887,5.61264,1781.7,1781.5,0.7662]
[1743688669221,6.39953,1782.0,1781.6,5.61285]
[1743688669522,5.61201,1781.9,1781.6,0.637905]
[1743688669720,5.61201,1781.9,1781.6,0.69402799]
[1743688670019,5.61167,1782.0,1781.7,5.6125]
[1743688670420,5.61244,1781.8,1781.6,0.637905]
[1743688670727,5.61244,1781.8,1781.5,0.82232452]
[1743688671885,5.61244,1781.8,1781.5,6.43547452]
[1743688672224,5.61106,1782.2,1781.8,6.16218]
[1743688672410,5.61138,1782.1,1781.8,6.16218]
[1743688672611,11.22293,1782.1,1781.8,0.55]
[1743688672921,5.61182,1782.0,1781.7,6.16259]
[1743688673122,5.61107,1782.2,1781.8,6.228519]
[1743688673437,11.22232,1782.2,1781.8,6.228519]
[1743688673640,5.61107,1782.2,1781.9,0.8147]
[1743688673796,11.22231,1782.2,1781.9,0.8147]
[1743688674296,5.61107,1782.2,1781.9,0.8147]
[1743688674488,5.61149,1782.1,1781.9,0.8147]
[1743688674711,5.61107,1782.2,1781.9,0.8147]
[1743688675233,11.22237,1782.2,1781.9,0.8147]
[1743688675630,5.61107,1782.2,1781.9,0.8147]
[1743688676127,5.61107,1782.2,1781.9,1.5190069]
[1743688676305,11.22231,1782.2,1781.9,1.5190069]
[1743688676828,11.22229,1782.2,1781.9,1.5190069]
[1743688677126,5.61107,1782.2,1781.9,1.5190069]
[1743688677293,11.22234,1782.2,1781.9,1.5190069]
[1743688677732,5.61107,1782.2,1781.9,1.5190069]
[1743688677891,11.22234,1782.2,1781.9,1.5190069]
[1743688678295,11.22234,1782.2,1781.9,0.8147]
[1743688679224,5.61107,1782.2,1781.9,0.8147]
[1743688679440,11.98929,1782.3,1781.9,6.48278445]
[1743688679640,11.22169,1782.3,1781.9,6.48278445]
[1743688679836,3.8127,1782.5,1781.9,6.48278445]
[1743688679837,5.61046,1782.4,1782.0,5.61155]
[1743688680043,11.22104,1782.4,1782.1,0.561155]
[1743688680339,11.22171,1782.3,1781.9,6.42662]
[1743688680637,5.61293,1781.6,1781.5,0.8158]
[1743688680940,5.61265,1781.7,1781.5,0.8158]
[1743688681758,11.22474,1781.8,1781.5,0.87192649]
[1743688681908,5.61167,1782.0,1781.6,5.61292]
[1743688682252,5.61167,1782.0,1781.7,0.561292]
[1743688682751,11.22354,1782.0,1781.7,0.561292]
[1743688682952,4.2233923,1782.2,1781.5,0.8158]
[1743688683137,5.61204,1781.9,1781.6,5.61286]
[1743688683457,5.6117,1782.0,1781.7,5.61261]
[1743688683752,5.6117,1782.0,1781.6,5.61283]
[1743688684157,5.612,1781.9,1781.6,5.61283]
[1743688684308,5.612,1781.9,1781.7,0.561283]
[1743688684509,11.2236,1782.0,1781.7,0.561283]
[1743688684714,5.6117,1782.0,1781.7,0.561283]
[1743688684951,5.6117,1782.0,1781.7,6.2299823]
[1743688685237,5.6117,1782.0,1781.7,6.22998211]
[1743688685455,5.61137,1782.1,1781.8,0.62299821]
[1743688685660,11.22301,1782.1,1781.8,0.62299821]
[1743688686139,0.7934,1782.2,1781.8,0.62299821]
[1743688686342,6.43743,1782.5,1781.9,1.38091554]
[1743688686543,5.61019,1782.5,1782.2,0.55]
[1743688686838,5.6105,1782.4,1782.2,0.5431878]
[1743688687053,5.6105,1782.4,1782.2,0.4931878]
[1743688687268,3.8052,1782.6,1781.9,0.7748]
[1743688687552,5.61228,1781.9,1781.6,6.4293]
[1743688687859,5.61228,1781.9,1781.1,0.05]
[1743688687860,5.61318,1781.6,1781.2,11.2281]
[1743688688067,12.03621,1781.7,1781.3,5.6138]
[1743688688342,6.42347,1781.7,1781.3,5.66993037]
[1743688688664,12.03626,1781.7,1781.3,11.28367037]
[1743688688867,6.42347,1781.7,1781.4,6.74190704]
[1743688689163,5.61267,1781.7,1781.4,6.74190704]
[1743688689309,5.61236,1781.8,1781.4,12.35534704]
[1743688689508,5.61275,1781.7,1781.4,1.12836704]
[1743688689714,5.61294,1781.6,1781.3,11.22758]
[1743688689934,5.61294,1781.6,1781.3,5.61371]
[1743688690148,5.61294,1781.6,1781.2,11.97845]
[1743688690346,5.61326,1781.5,1781.3,0.55]
[1743688690647,6.83305408,1781.9,1781.2,0.7503]
[1743688690832,6.83305408,1781.9,1781.1,0.05]
[1743688690833,5.61387,1781.4,1781.1,0.05]
[1743688691146,5.61351,1781.5,1781.1,5.6645]
[1743688691328,11.22702,1781.5,1781.1,5.6645]
[1743688691530,11.22554,1781.7,1781.2,11.85067703]
[1743688691735,5.61314,1781.6,1781.2,6.18049]
[1743688691931,5.61314,1781.6,1781.3,5.61384]
[1743688692114,5.61276,1781.7,1781.3,5.66997451]
[1743688692314,5.61293,1781.6,1781.3,5.61384]
[1743688692633,11.22604,1781.6,1781.3,1.179444]
[1743688692810,5.61293,1781.6,1781.2,5.61415]
[1743688693015,5.61265,1781.7,1781.3,11.28373263]
[1743688693215,5.61265,1781.7,1781.4,0.8036]
[1743688693412,5.61233,1781.8,1781.4,6.41699]
[1743688693743,5.61233,1781.8,1781.4,7.620202]
[1743688693910,5.61233,1781.8,1781.5,5.61323]
[1743688694311,5.61233,1781.8,1781.4,13.233612]
[1743688694513,5.61324,1781.6,1781.2,5.61419]
[1743688694713,5.61351,1781.5,1781.1,5.66434]
[1743688694914,5.61343,1781.5,1781.1,11.27874]
[1743688695142,5.61343,1781.5,1781.2,5.61416]
[1743688695313,5.61295,1781.6,1781.2,11.22825]
[1743688695509,11.22616,1781.6,1781.2,6.741915]
[1743688695735,5.61325,1781.5,1781.2,6.741915]
[1743688696855,11.22671,1781.5,1781.2,1.127825]
[1743688697050,11.22671,1781.5,1781.1,5.66436]
[1743688697051,5.61368,1781.4,1781.1,5.66436]
[1743688698240,5.61325,1781.5,1781.1,11.27872]
[1743688698435,5.61325,1781.5,1781.1,5.66436]
[1743688699164,11.22673,1781.5,1781.1,5.66436]
[1743688699963,5.61325,1781.5,1781.1,5.66436]
[1743688700151,5.61363,1781.4,1781.1,0.05]
[1743688700357,11.22737,1781.4,1781.1,0.05]
[1743688700666,5.61404,1781.3,1781.1,0.05]
[1743688701135,11.22743,1781.4,1781.1,0.05]
[1743688701887,11.22834,1781.3,1781.1,0.05]
[1743688702073,11.98004,1781.3,1781.1,0.05]
[1743688702372,5.61419,1781.2,1781.1,0.05]
[1743688702883,6.36587,1781.3,1781.1,0.05]
[1743688703366,11.22626,1781.6,1781.2,5.61406]
[1743688703563,11.22626,1781.6,1781.3,0.561406]
[1743688703767,5.61329,1781.5,1781.2,5.61406]
[1743688703967,5.61329,1781.5,1781.2,5.67019584]
[1743688704129,5.61329,1781.5,1781.2,0.05613584]
[1743688704330,5.61293,1781.6,1781.1,0.05]
[1743688704566,5.61338,1781.5,1781.1,5.66436]
[1743688704872,5.61114,1782.2,1781.8,5.61211]
[1743688705077,5.61066,1782.4,1782.0,5.61167]
[1743688705288,5.61066,1782.4,1782.0,11.22324]
[1743688705438,5.61063,1782.4,1782.0,6.733894]
[1743688705636,5.61073,1782.3,1782.0,1.122324]
[1743688705851,5.61041,1782.4,1781.7,1.3823]
[1743688706171,5.6119,1782.0,1781.7,0.8323]
[1743688706342,5.61185,1782.0,1781.7,0.8323]
[1743688706542,5.61214,1781.9,1781.7,0.8323]
[1743688706943,5.61185,1782.0,1781.6,6.16282]
[1743688707277,5.61145,1782.1,1781.7,6.228862]
[1743688707573,5.61145,1782.1,1781.8,5.61216]
[1743688707574,5.61139,1782.1,1781.8,5.61216]
[1743688708369,5.6107,1782.4,1782.0,5.61154]
[1743688708682,5.61119,1782.2,1781.9,0.8042]
[1743688709193,5.61079,1782.3,1781.9,0.8042]
[1743688709481,5.61107,1782.2,1781.9,6.41609]
[1743688709839,5.61079,1782.3,1781.9,13.230768]
[1743688710173,5.61114,1782.2,1781.9,7.618878]
[1743688711341,5.61147,1782.1,1781.9,0.8042]
[1743688711537,9.44254,1782.3,1781.5,0.7775]
[1743688711873,5.61325,1781.5,1781.2,0.7775]
[1743688712060,11.22679,1781.5,1781.2,0.7775]
[1743688712368,5.61325,1781.5,1781.2,0.7775]
[1743688712569,5.61267,1781.7,1781.2,1.42167]
[1743688712775,5.61307,1781.6,1781.2,12.00577]
[1743688712963,5.61307,1781.6,1781.2,6.39159]
[1743688713280,11.22627,1781.6,1781.2,6.39158]
[1743688713463,11.2255,1781.7,1781.2,0.83363425]
[1743688713642,11.2255,1781.7,1781.3,5.61375]
[1743688713643,5.61297,1781.6,1781.3,5.61375]
[1743688713959,6.39053,1782.0,1781.6,5.61282]
[1743688714160,8.61099,1782.3,1781.7,0.55]
[1743688714161,0.7786,1782.2,1781.7,0.55]
[1743688714362,11.22192,1782.3,1781.9,5.61175]
[1743688714562,6.3888,1782.5,1782.1,6.36888]
[1743688714777,5.60951,1782.7,1782.3,5.61072]
[1743688714945,5.61025,1782.5,1782.2,0.55]
[1743688715777,11.21975,1782.6,1782.2,6.21709311]
[1743688716076,5.60979,1782.6,1782.2,6.21709311]
[1743688716277,11.21976,1782.6,1782.2,6.21696311]
[1743688716580,11.21975,1782.6,1782.2,6.21696311]
[1743688716751,5.6095,1782.7,1782.3,6.23230631]
[1743688716958,6.38875,1782.8,1782.3,0.62169631]
[1743688717156,6.36278,1783.0,1782.5,5.61009]
[1743688717368,11.21747,1783.0,1782.6,5.66580368]
[1743688717743,5.60892,1782.9,1782.5,5.61009]
[1743688718051,5.60892,1782.9,1782.5,11.21988]
[1743688718273,5.60892,1782.9,1782.6,1.121988]
[1743688718461,11.21797,1782.9,1782.6,1.121988]
[1743688718665,11.21797,1782.9,1782.4,6.41631]
[1743688718666,5.60917,1782.8,1782.4,6.41631]
[1743688718979,5.61023,1782.5,1782.1,6.95686]
[1743688719166,5.60903,1782.9,1782.1,0.55]
[1743688719347,5.60903,1782.9,1782.5,6.40569]
[1743688719547,5.60903,1782.9,1782.6,0.640569]
[1743688719781,5.60903,1782.9,1782.6,5.60967]
[1743688719956,0.7969,1783.2,1782.6,5.66576182]
[1743688720292,5.60852,1783.0,1782.6,6.15948]
[1743688720490,5.6085,1783.1,1782.7,5.60928]
[1743688720779,5.60858,1783.0,1782.6,11.76954]
[1743688720983,0.7969,1783.2,1782.6,11.76954]
[1743688720984,6.40494,1783.2,1782.8,5.60899]
[1743688721658,5.60689,1783.6,1783.2,5.60765]
[1743688721978,5.60696,1783.5,1783.2,0.55]
[1743688722179,5.60768,1783.3,1783.0,0.7702]
[1743688722367,5.60762,1783.3,1783.0,0.7702]
[1743688722769,6.35913,1783.6,1783.0,0.7702]
[1743688722970,5.60697,1783.5,1783.0,6.37855]
[1743688723366,11.21417,1783.5,1783.1,5.66413672]
[1743688723565,5.60697,1783.5,1783.1,5.66413672]
[1743688723781,11.96605,1783.6,1783.2,6.17417367]
[1743688723955,11.96605,1783.6,1783.2,0.56641367]
[1743688723956,5.60709,1783.5,1783.2,0.56641367]
[1743688724473,11.21423,1783.5,1783.2,0.56641367]
[1743688724873,5.60709,1783.5,1783.2,0.56641367]
[1743688725090,5.60739,1783.4,1783.2,0.56641367]
[1743688725260,5.60739,1783.4,1783.1,0.05607633]
[1743688725460,5.60739,1783.4,1783.0,0.7702]
[1743688725660,0.7525,1783.6,1783.0,0.7702]
[1743688725974,5.60759,1783.3,1783.0,0.7702]
[1743688726177,5.60697,1783.5,1783.0,6.43463662]
[1743688726349,5.60697,1783.5,1783.1,6.25155366]
[1743688726755,5.60697,1783.5,1783.1,6.30762998]
[1743688726957,5.60666,1783.6,1783.2,5.60777]
[1743688727182,5.60666,1783.6,1783.3,0.05606948]
[1743688727453,6.41961,1783.8,1783.2,1.3444]
[1743688727662,5.60687,1783.6,1783.2,6.95218]
[1743688727985,5.60726,1783.4,1783.0,6.95287]
[1743688728289,5.60758,1783.3,1783.1,0.05607611]
[1743688728511,5.60807,1783.2,1783.0,0.7944]
[1743688728788,5.60807,1783.2,1782.9,0.55]
[1743688728954,5.60728,1783.4,1783.0,0.0560805]
[1743688729157,5.60728,1783.4,1783.0,6.28595278]
[1743688729357,5.60728,1783.4,1783.0,11.89431278]
[1743688729585,11.21413,1783.5,1783.1,6.3842]
[1743688729792,5.60728,1783.4,1783.1,0.776]
[1743688729994,0.7939,1783.6,1783.1,2.0374306]
[1743688730192,5.60799,1783.2,1782.9,0.88197979]
[1743688730990,5.60801,1783.2,1782.9,6.49070979]
[1743688731989,0.793,1783.2,1782.6,0.7525]
[1743688732190,5.60875,1783.0,1782.6,6.36216]
[1743688732364,0.793,1783.2,1782.7,0.636216]
[1743688732782,5.60871,1783.0,1782.7,0.636216]
[1743688732954,5.60827,1783.1,1782.8,5.60909]
[1743688733157,5.60865,1783.0,1782.7,0.55]
[1743688733974,5.60821,1783.1,1782.7,6.15933]
[1743688734287,5.60775,1783.3,1782.8,5.60915]
[1743688734593,11.21627,1783.2,1782.8,6.27187114]